[Event "Titled Tuesday Blitz May 16 Early 2023"]
[White "Kvaloy, Aksel Bu"]
[Black "Lorenzo De La Riva, Lazaro"]
[WhiteFideId "1528815"]
[BlackFideId "2268809"]
[WhiteElo "2242"]
[BlackElo "2294"]
[Result "1-0"]
[Round "03"]
[TimeControl "180+2"]
[Date "2023.05.16"]
[WhiteClock "0:00:36"]
[BlackClock "0:00:21"]

1. e4 {[%clk 0:03:00]}  c5 {[%clk 0:02:59]} 2. Nf3 {[%clk 0:02:59]}  Nc6 {[%clk 0:02:59]} 3. d4 {[%clk 0:02:59]}  cxd4 {[%clk 0:03:00]} 4. Nxd4 {[%clk 0:03:00]}  Nf6 {[%clk 0:03:00]} 5. Nc3 {[%clk 0:02:58]}  e6 {[%clk 0:03:01]} 6. Ndb5 {[%clk 0:02:54]}  Bb4 {[%clk 0:02:58]} 7. a3 {[%clk 0:02:51]}  Bxc3+ {[%clk 0:02:58]} 8. Nxc3 {[%clk 0:02:52]}  d5 {[%clk 0:02:59]} 9. exd5 {[%clk 0:02:49]}  exd5 {[%clk 0:03:00]} 10. Bd3 {[%clk 0:02:48]}  O-O {[%clk 0:03:00]} 11. O-O {[%clk 0:02:48]}  d4 {[%clk 0:03:01]} 12. Ne2 {[%clk 0:02:48]}  Bg4 {[%clk 0:03:00]} 13. f3 {[%clk 0:02:47]}  Bh5 {[%clk 0:03:00]} 14. Bg5 {[%clk 0:02:45]}  Bg6 {[%clk 0:02:55]} 15. Bxg6 {[%clk 0:02:41]}  hxg6 {[%clk 0:02:56]} 16. Qd2 {[%clk 0:02:37]}  Qb6 {[%clk 0:02:49]} 17. Kh1 {[%clk 0:02:32]}  Rfd8 {[%clk 0:02:42]} 18. Rfd1 {[%clk 0:02:25]}  Rac8 {[%clk 0:02:25]} 19. b3 {[%clk 0:02:22]}  Ne5 {[%clk 0:02:10]} 20. Nxd4 {[%clk 0:02:08]}  Rd7 {[%clk 0:02:05]} 21. Qe3 {[%clk 0:02:01]}  Re8 {[%clk 0:02:00]} 22. Bxf6 {[%clk 0:02:00]}  gxf6 {[%clk 0:01:45]} 23. f4 {[%clk 0:01:59]}  Qd8 {[%clk 0:01:43]} 24. Qg1 {[%clk 0:01:05]}  Ng4 {[%clk 0:01:38]} 25. Rd3 {[%clk 0:01:02]}  Re4 {[%clk 0:01:08]} 26. Rad1 {[%clk 0:00:58]}  Qe8 {[%clk 0:00:46]} 27. c3 {[%clk 0:00:48]}  Ne3 {[%clk 0:00:44]} 28. Re1 {[%clk 0:00:44]}  Nf5 {[%clk 0:00:39]} 29. Rxe4 {[%clk 0:00:43]}  Qxe4 {[%clk 0:00:38]} 30. Rd1 {[%clk 0:00:41]}  Qxf4 {[%clk 0:00:28]} 31. Nxf5 {[%clk 0:00:38]}  Qxf5 {[%clk 0:00:28]} 32. Rxd7 {[%clk 0:00:33]}  Qxd7 {[%clk 0:00:29]} 33. h3 {[%clk 0:00:33]}  b6 {[%clk 0:00:26]} 34. Qd4 {[%clk 0:00:30]}  Qxd4 {[%clk 0:00:21]} 35. cxd4 {[%clk 0:00:31]}  Kf8 {[%clk 0:00:22]} 36. Kg1 {[%clk 0:00:28]}  Ke7 {[%clk 0:00:22]} 37. Kf2 {[%clk 0:00:29]}  Kd6 {[%clk 0:00:19]} 38. g4 {[%clk 0:00:29]}  g5 {[%clk 0:00:18]} 39. Ke3 {[%clk 0:00:29]}  Kd5 {[%clk 0:00:17]} 40. Kd3 {[%clk 0:00:29]}  a6 {[%clk 0:00:13]} 41. a4 {[%clk 0:00:29]}  a5 {[%clk 0:00:13]} 42. Ke3 {[%clk 0:00:29]}  Kd6 {[%clk 0:00:10]} 43. Ke4 {[%clk 0:00:26]}  Ke6 {[%clk 0:00:09]} 44. d5+ {[%clk 0:00:25]}  Kd6 {[%clk 0:00:09]} 45. Kf5 {[%clk 0:00:26]}  Kxd5 {[%clk 0:00:07]} 46. Kxf6 {[%clk 0:00:27]}  Kc5 {[%clk 0:00:06]} 47. Kxg5 {[%clk 0:00:27]}  Kb4 {[%clk 0:00:07]} 48. h4 {[%clk 0:00:27]}  Kxb3 {[%clk 0:00:08]} 49. h5 {[%clk 0:00:28]}  Kxa4 {[%clk 0:00:09]} 50. h6 {[%clk 0:00:28]}  b5 {[%clk 0:00:09]} 51. h7 {[%clk 0:00:29]}  b4 {[%clk 0:00:10]} 52. h8=Q {[%clk 0:00:30]}  b3 {[%clk 0:00:11]} 53. Qb2 {[%clk 0:00:28]}  Kb4 {[%clk 0:00:12]} 54. Kf6 {[%clk 0:00:28]}  a4 {[%clk 0:00:13]} 55. Kxf7 {[%clk 0:00:28]}  a3 {[%clk 0:00:14]} 56. Qd4+ {[%clk 0:00:29]}  Kb5 {[%clk 0:00:14]} 57. Qc3 {[%clk 0:00:29]}  Ka4 {[%clk 0:00:14]} 58. Qc4+ {[%clk 0:00:30]}  Ka5 {[%clk 0:00:14]} 59. Qxb3 {[%clk 0:00:30]}  a2 {[%clk 0:00:15]} 60. Qxa2+ {[%clk 0:00:31]}  Kb4 {[%clk 0:00:16]} 61. Qd5 {[%clk 0:00:31]}  Kc3 {[%clk 0:00:17]} 62. Qe4 {[%clk 0:00:31]}  Kb2 {[%clk 0:00:18]} 63. Qd3 {[%clk 0:00:31]}  Kc1 {[%clk 0:00:19]} 64. Qe2 {[%clk 0:00:31]}  Kb1 {[%clk 0:00:19]} 65. Ke6 {[%clk 0:00:32]}  Ka1 {[%clk 0:00:20]} 66. Kd5 {[%clk 0:00:33]}  Kb1 {[%clk 0:00:20]} 67. Kc4 {[%clk 0:00:34]}  Kc1 {[%clk 0:00:21]} 68. Kb3 {[%clk 0:00:35]}  Kb1 {[%clk 0:00:21]} 69. Qe1# {[%clk 0:00:36]} 1-0


[Site "https://www.chess.com"]

[Event "Titled Tuesday Blitz May 16 Early 2023"]
[White "Priasmoro, Novendra"]
[Black "Ljukin, Sergei"]
[WhiteFideId "7105029"]
[BlackFideId "14102200"]
[WhiteElo "2412"]
[BlackElo "2312"]
[Result "1-0"]
[Round "03"]
[TimeControl "180+2"]
[Date "2023.05.16"]
[WhiteClock "0:02:02"]
[BlackClock "0:00:20"]

1. e4 {[%clk 0:03:00]}  e6 {[%clk 0:03:00]} 2. d4 {[%clk 0:03:00]}  d5 {[%clk 0:03:00]} 3. Nc3 {[%clk 0:02:59]}  Bb4 {[%clk 0:03:00]} 4. e5 {[%clk 0:02:58]}  Ne7 {[%clk 0:03:00]} 5. Qg4 {[%clk 0:02:55]}  c5 {[%clk 0:02:59]} 6. a3 {[%clk 0:02:53]}  Bxc3+ {[%clk 0:02:59]} 7. bxc3 {[%clk 0:02:54]}  Qc7 {[%clk 0:02:59]} 8. Qxg7 {[%clk 0:02:51]}  Rg8 {[%clk 0:02:59]} 9. Qxh7 {[%clk 0:02:52]}  cxd4 {[%clk 0:03:00]} 10. Ne2 {[%clk 0:02:52]}  Nbc6 {[%clk 0:02:59]} 11. h4 {[%clk 0:02:48]}  Bd7 {[%clk 0:02:53]} 12. h5 {[%clk 0:02:45]}  O-O-O {[%clk 0:02:31]} 13. Bf4 {[%clk 0:02:38]}  Nf5 {[%clk 0:02:02]} 14. h6 {[%clk 0:02:31]}  Nxe5 {[%clk 0:01:41]} 15. cxd4 {[%clk 0:02:04]}  Nxd4 {[%clk 0:01:40]} 16. Bxe5 {[%clk 0:02:04]}  Qxe5 {[%clk 0:01:32]} 17. f4 {[%clk 0:02:05]}  Qe3 {[%clk 0:00:20]} 18. Rh3 {[%clk 0:02:02]} 1-0


[Site "https://www.chess.com"]

[Event "Titled Tuesday Blitz May 16 Early 2023"]
[White "Martinez Ramirez, Lennis"]
[Black "Aarav Dengla"]
[WhiteFideId "3509079"]
[BlackFideId "45059756"]
[WhiteElo "2410"]
[BlackElo "2288"]
[Result "1-0"]
[Round "03"]
[TimeControl "180+2"]
[Date "2023.05.16"]
[WhiteClock "0:00:46"]
[BlackClock "0:00:10"]

1. c4 {[%clk 0:03:00]}  e6 {[%clk 0:02:57]} 2. d4 {[%clk 0:02:59]}  d5 {[%clk 0:02:56]} 3. Nc3 {[%clk 0:02:59]}  a6 {[%clk 0:02:57]} 4. cxd5 {[%clk 0:02:59]}  exd5 {[%clk 0:02:57]} 5. Bf4 {[%clk 0:02:55]}  Nf6 {[%clk 0:02:57]} 6. Qc2 {[%clk 0:02:55]}  c5 {[%clk 0:02:33]} 7. Nf3 {[%clk 0:02:41]}  Nc6 {[%clk 0:02:27]} 8. Rd1 {[%clk 0:02:36]}  cxd4 {[%clk 0:02:19]} 9. Nxd4 {[%clk 0:02:33]}  Nxd4 {[%clk 0:02:17]} 10. Rxd4 {[%clk 0:02:33]}  Bc5 {[%clk 0:02:18]} 11. Rd1 {[%clk 0:02:20]}  d4 {[%clk 0:02:15]} 12. e3 {[%clk 0:02:20]}  Qe7 {[%clk 0:02:14]} 13. Rxd4 {[%clk 0:02:07]}  Bxd4 {[%clk 0:02:09]} 14. Qa4+ {[%clk 0:02:07]}  Bd7 {[%clk 0:02:08]} 15. Qxd4 {[%clk 0:02:07]}  Bc6 {[%clk 0:02:06]} 16. Bd6 {[%clk 0:01:55]}  Qe6 {[%clk 0:02:03]} 17. Bc4 {[%clk 0:01:54]}  Qf5 {[%clk 0:01:57]} 18. f3 {[%clk 0:01:47]}  O-O-O {[%clk 0:01:43]} 19. e4 {[%clk 0:01:45]}  Qg5 {[%clk 0:01:36]} 20. Bxf7 {[%clk 0:01:23]}  Rhe8 {[%clk 0:00:47]} 21. Bxe8 {[%clk 0:01:19]}  Nxe8 {[%clk 0:00:48]} 22. e5 {[%clk 0:01:12]}  Qxg2 {[%clk 0:00:17]} 23. Rf1 {[%clk 0:01:11]}  Nxd6 {[%clk 0:00:17]} 24. exd6 {[%clk 0:00:59]}  Re8+ {[%clk 0:00:17]} 25. Ne4 {[%clk 0:00:59]}  Qxh2 {[%clk 0:00:15]} 26. Kd1 {[%clk 0:00:49]}  Qe5 {[%clk 0:00:13]} 27. d7+ {[%clk 0:00:46]}  Bxd7 {[%clk 0:00:12]} 28. Nd6+ {[%clk 0:00:47]}  Kd8 {[%clk 0:00:10]} 29. Nf7+ {[%clk 0:00:46]} 1-0


[Site "https://www.chess.com"]

[Event "Titled Tuesday Blitz May 16 Early 2023"]
[White "Rodchenkov, Sergey D."]
[Black "Skliarov, Viktor"]
[WhiteFideId "4168712"]
[BlackFideId "14106736"]
[WhiteElo "2277"]
[BlackElo "2317"]
[Result "0-1"]
[Round "03"]
[TimeControl "180+2"]
[Date "2023.05.16"]
[WhiteClock "0:00:11"]
[BlackClock "0:00:05"]

1. e4 {[%clk 0:03:00]}  c5 {[%clk 0:03:00]} 2. Nf3 {[%clk 0:03:01]}  Nc6 {[%clk 0:03:00]} 3. d4 {[%clk 0:03:01]}  cxd4 {[%clk 0:03:01]} 4. Nxd4 {[%clk 0:03:02]}  Nf6 {[%clk 0:03:02]} 5. Nc3 {[%clk 0:03:03]}  e5 {[%clk 0:03:02]} 6. Ndb5 {[%clk 0:03:03]}  d6 {[%clk 0:03:03]} 7. Nd5 {[%clk 0:03:04]}  Nxd5 {[%clk 0:03:03]} 8. exd5 {[%clk 0:03:05]}  Nb8 {[%clk 0:03:04]} 9. Be2 {[%clk 0:03:06]}  Be7 {[%clk 0:03:04]} 10. c4 {[%clk 0:03:06]}  O-O {[%clk 0:03:04]} 11. O-O {[%clk 0:03:07]}  a6 {[%clk 0:03:05]} 12. Nc3 {[%clk 0:03:07]}  f5 {[%clk 0:03:06]} 13. f4 {[%clk 0:03:07]}  Nd7 {[%clk 0:03:06]} 14. Kh1 {[%clk 0:03:08]}  b6 {[%clk 0:03:03]} 15. a4 {[%clk 0:03:06]}  a5 {[%clk 0:02:59]} 16. Nb5 {[%clk 0:03:05]}  Ba6 {[%clk 0:02:52]} 17. Be3 {[%clk 0:03:04]}  Bxb5 {[%clk 0:02:48]} 18. axb5 {[%clk 0:03:02]}  exf4 {[%clk 0:02:33]} 19. Bxf4 {[%clk 0:03:00]}  Nc5 {[%clk 0:02:33]} 20. Qe1 {[%clk 0:02:51]}  Bf6 {[%clk 0:02:25]} 21. Qg3 {[%clk 0:02:39]}  Ne4 {[%clk 0:02:11]} 22. Qb3 {[%clk 0:02:37]}  Bg5 {[%clk 0:01:54]} 23. Qf3 {[%clk 0:02:20]}  Bxf4 {[%clk 0:01:25]} 24. Qxf4 {[%clk 0:02:21]}  Qg5 {[%clk 0:01:25]} 25. Qxg5 {[%clk 0:01:58]}  Nxg5 {[%clk 0:01:26]} 26. Bd3 {[%clk 0:01:58]}  g6 {[%clk 0:01:23]} 27. Rae1 {[%clk 0:01:54]}  Rae8 {[%clk 0:01:22]} 28. Kg1 {[%clk 0:01:52]}  Nf7 {[%clk 0:01:14]} 29. Kf2 {[%clk 0:01:26]}  Ne5 {[%clk 0:01:12]} 30. Be2 {[%clk 0:01:27]}  Kf7 {[%clk 0:01:07]} 31. h3 {[%clk 0:01:26]}  Kf6 {[%clk 0:01:06]} 32. Ra1 {[%clk 0:01:21]}  Nd7 {[%clk 0:00:55]} 33. Rfe1 {[%clk 0:00:44]}  Nc5 {[%clk 0:00:54]} 34. Bf1 {[%clk 0:00:44]}  Re5 {[%clk 0:00:43]} 35. Rxe5 {[%clk 0:00:35]}  dxe5 {[%clk 0:00:43]} 36. Rd1 {[%clk 0:00:36]}  Rd8 {[%clk 0:00:40]} 37. Bd3 {[%clk 0:00:32]}  e4 {[%clk 0:00:36]} 38. Bc2 {[%clk 0:00:31]}  Ke5 {[%clk 0:00:36]} 39. g3 {[%clk 0:00:31]}  g5 {[%clk 0:00:32]} 40. Rh1 {[%clk 0:00:17]}  Kd4 {[%clk 0:00:16]} 41. h4 {[%clk 0:00:15]}  h6 {[%clk 0:00:15]} 42. hxg5 {[%clk 0:00:15]}  hxg5 {[%clk 0:00:16]} 43. b3 {[%clk 0:00:11]}  Kc3 {[%clk 0:00:16]} 44. Bd1 {[%clk 0:00:10]}  Nxb3 {[%clk 0:00:15]} 45. Bxb3 {[%clk 0:00:06]}  Kxb3 {[%clk 0:00:15]} 46. c5 {[%clk 0:00:05]}  bxc5 {[%clk 0:00:08]} 47. b6 {[%clk 0:00:05]}  Kc4 {[%clk 0:00:08]} 48. d6 {[%clk 0:00:05]}  Rxd6 {[%clk 0:00:06]} 49. Rc1+ {[%clk 0:00:06]}  Kd5 {[%clk 0:00:02]} 50. b7 {[%clk 0:00:07]}  Rb6 {[%clk 0:00:02]} 51. Rd1+ {[%clk 0:00:07]}  Kc6 {[%clk 0:00:02]} 52. Ra1 {[%clk 0:00:08]}  Rxb7 {[%clk 0:00:03]} 53. Ke3 {[%clk 0:00:09]}  Rb3+ {[%clk 0:00:03]} 54. Ke2 {[%clk 0:00:10]}  Kd5 {[%clk 0:00:04]} 55. Rd1+ {[%clk 0:00:10]}  Ke5 {[%clk 0:00:04]} 56. Ra1 {[%clk 0:00:11]}  Rxg3 {[%clk 0:00:04]} 57. Rxa5 {[%clk 0:00:11]}  Rc3 {[%clk 0:00:05]} 58. Ra7 {[%clk 0:00:11]}  Rc4 {[%clk 0:00:05]} 59. Re7+ {[%clk 0:00:11]}  Kf4 {[%clk 0:00:06]} 60. Ra7 {[%clk 0:00:12]}  g4 {[%clk 0:00:06]} 61. Ra4 {[%clk 0:00:11]}  Rxa4 {[%clk 0:00:05]} 0-1


[Site "https://www.chess.com"]

[Event "Titled Tuesday Blitz May 16 Early 2023"]
[White "Manukyan, Sargis A."]
[Black "Sowul, Bartosz"]
[WhiteFideId "13303970"]
[BlackFideId "1137590"]
[WhiteElo "2187"]
[BlackElo "2188"]
[Result "1-0"]
[Round "03"]
[TimeControl "180+2"]
[Date "2023.05.16"]
[WhiteClock "0:00:40"]
[BlackClock "0:00:21"]

1. d4 {[%clk 0:03:00]}  Nf6 {[%clk 0:02:59]} 2. c4 {[%clk 0:03:01]}  c5 {[%clk 0:03:00]} 3. d5 {[%clk 0:03:02]}  b5 {[%clk 0:03:00]} 4. cxb5 {[%clk 0:03:03]}  a6 {[%clk 0:03:01]} 5. bxa6 {[%clk 0:03:03]}  g6 {[%clk 0:03:01]} 6. Nc3 {[%clk 0:03:04]}  Bg7 {[%clk 0:03:01]} 7. Nf3 {[%clk 0:03:05]}  O-O {[%clk 0:03:01]} 8. g3 {[%clk 0:03:04]}  d6 {[%clk 0:03:00]} 9. Bg2 {[%clk 0:03:04]}  Nbd7 {[%clk 0:03:01]} 10. O-O {[%clk 0:03:02]}  Nb6 {[%clk 0:03:01]} 11. Nh4 {[%clk 0:03:02]}  Bxa6 {[%clk 0:02:56]} 12. Rb1 {[%clk 0:03:01]}  Nfd7 {[%clk 0:02:50]} 13. Bd2 {[%clk 0:03:01]}  Nc4 {[%clk 0:02:50]} 14. b3 {[%clk 0:03:00]}  Nxd2 {[%clk 0:02:46]} 15. Qxd2 {[%clk 0:03:01]}  Qa5 {[%clk 0:02:46]} 16. Rfc1 {[%clk 0:03:00]}  Rfb8 {[%clk 0:02:44]} 17. Nf3 {[%clk 0:02:49]}  c4 {[%clk 0:02:36]} 18. Nd4 {[%clk 0:02:34]}  Bxd4 {[%clk 0:02:29]} 19. Qxd4 {[%clk 0:02:33]}  cxb3 {[%clk 0:02:29]} 20. axb3 {[%clk 0:02:34]}  Rb4 {[%clk 0:02:26]} 21. Qd2 {[%clk 0:02:30]}  Qb6 {[%clk 0:02:09]} 22. Ne4 {[%clk 0:02:08]}  Ne5 {[%clk 0:01:48]} 23. Qg5 {[%clk 0:02:00]}  f6 {[%clk 0:01:31]} 24. Qd2 {[%clk 0:01:42]}  Rxb3 {[%clk 0:01:18]} 25. Rxb3 {[%clk 0:01:38]}  Qxb3 {[%clk 0:01:18]} 26. h3 {[%clk 0:01:33]}  Qb7 {[%clk 0:01:12]} 27. f4 {[%clk 0:01:28]}  Nc4 {[%clk 0:01:07]} 28. Qc3 {[%clk 0:01:25]}  Rc8 {[%clk 0:01:05]} 29. Kh2 {[%clk 0:01:22]}  Kf7 {[%clk 0:00:58]} 30. h4 {[%clk 0:01:18]}  Nb6 {[%clk 0:00:50]} 31. Qd2 {[%clk 0:01:10]}  Rxc1 {[%clk 0:00:50]} 32. Qxc1 {[%clk 0:01:11]}  Bxe2 {[%clk 0:00:50]} 33. Qe1 {[%clk 0:00:51]}  Bg4 {[%clk 0:00:49]} 34. Nc3 {[%clk 0:00:51]}  Qd7 {[%clk 0:00:46]} 35. Qe3 {[%clk 0:00:51]}  Na8 {[%clk 0:00:44]} 36. Qd4 {[%clk 0:00:49]}  Nc7 {[%clk 0:00:44]} 37. Ne4 {[%clk 0:00:49]}  Ne8 {[%clk 0:00:41]} 38. Nf2 {[%clk 0:00:49]}  Bf5 {[%clk 0:00:40]} 39. Nd1 {[%clk 0:00:47]}  Ng7 {[%clk 0:00:39]} 40. Ne3 {[%clk 0:00:47]}  Bg4 {[%clk 0:00:37]} 41. Nc4 {[%clk 0:00:43]}  Nf5 {[%clk 0:00:35]} 42. Qf2 {[%clk 0:00:44]}  h5 {[%clk 0:00:33]} 43. Na5 {[%clk 0:00:44]}  Nh6 {[%clk 0:00:32]} 44. Nc6 {[%clk 0:00:43]}  Bf5 {[%clk 0:00:32]} 45. Bf3 {[%clk 0:00:43]}  Bg4 {[%clk 0:00:31]} 46. Bg2 {[%clk 0:00:43]}  Nf5 {[%clk 0:00:32]} 47. Qe1 {[%clk 0:00:42]}  Ng7 {[%clk 0:00:30]} 48. Nd4 {[%clk 0:00:42]}  Bf5 {[%clk 0:00:29]} 49. Qe3 {[%clk 0:00:40]}  Bg4 {[%clk 0:00:27]} 50. Qc3 {[%clk 0:00:40]}  Nf5 {[%clk 0:00:27]} 51. Nc6 {[%clk 0:00:40]}  Qa7 {[%clk 0:00:21]} 52. Nxa7 {[%clk 0:00:40]} 1-0


[Site "https://www.chess.com"]

[Event "Titled Tuesday Blitz May 16 Early 2023"]
[White "liwadas82"]
[Black "Bernabeu Lopez, Carlos Javier"]
[BlackFideId "2235366"]
[WhiteElo "2468"]
[BlackElo "2344"]
[Result "0-1"]
[Round "03"]
[TimeControl "180+2"]
[Date "2023.05.16"]
[WhiteClock "0:00:00"]
[BlackClock "0:01:37"]

1. e4 {[%clk 0:03:00]}  e5 {[%clk 0:02:59]} 2. Nf3 {[%clk 0:03:00]}  Nc6 {[%clk 0:03:00]} 3. Bb5 {[%clk 0:03:00]}  a6 {[%clk 0:02:57]} 4. Ba4 {[%clk 0:03:01]}  Nge7 {[%clk 0:02:56]} 5. d4 {[%clk 0:02:55]}  exd4 {[%clk 0:02:56]} 6. Nxd4 {[%clk 0:02:52]}  g6 {[%clk 0:02:55]} 7. Nc3 {[%clk 0:02:39]}  Bg7 {[%clk 0:02:55]} 8. Nxc6 {[%clk 0:02:38]}  Nxc6 {[%clk 0:02:53]} 9. O-O {[%clk 0:02:38]}  O-O {[%clk 0:02:53]} 10. Nd5 {[%clk 0:02:28]}  d6 {[%clk 0:02:52]} 11. Re1 {[%clk 0:02:21]}  Be6 {[%clk 0:02:52]} 12. Bb3 {[%clk 0:02:15]}  Nd4 {[%clk 0:02:48]} 13. Be3 {[%clk 0:02:11]}  Nxb3 {[%clk 0:02:47]} 14. axb3 {[%clk 0:02:12]}  Bxb2 {[%clk 0:02:47]} 15. Rb1 {[%clk 0:01:56]}  Bg7 {[%clk 0:02:47]} 16. c4 {[%clk 0:01:53]}  Re8 {[%clk 0:02:45]} 17. Bd4 {[%clk 0:01:52]}  Bxd5 {[%clk 0:02:43]} 18. cxd5 {[%clk 0:01:43]}  Qe7 {[%clk 0:02:29]} 19. Rc1 {[%clk 0:01:40]}  Rac8 {[%clk 0:02:28]} 20. Rc3 {[%clk 0:01:31]}  c5 {[%clk 0:02:27]} 21. dxc6 {[%clk 0:01:29]}  bxc6 {[%clk 0:02:28]} 22. Bxg7 {[%clk 0:01:24]}  Kxg7 {[%clk 0:02:29]} 23. Rd3 {[%clk 0:01:24]}  d5 {[%clk 0:02:26]} 24. e5 {[%clk 0:01:18]}  Qb4 {[%clk 0:02:18]} 25. Rd4 {[%clk 0:01:12]}  Qb6 {[%clk 0:02:15]} 26. b4 {[%clk 0:01:08]}  Re6 {[%clk 0:02:16]} 27. f4 {[%clk 0:01:05]}  a5 {[%clk 0:02:13]} 28. bxa5 {[%clk 0:00:59]}  Qxa5 {[%clk 0:02:14]} 29. Kh1 {[%clk 0:00:57]}  Rb8 {[%clk 0:02:13]} 30. f5 {[%clk 0:00:47]}  gxf5 {[%clk 0:02:14]} 31. Rf1 {[%clk 0:00:35]}  Qa2 {[%clk 0:02:05]} 32. Rdf4 {[%clk 0:00:28]}  Rg6 {[%clk 0:02:03]} 33. R4f2 {[%clk 0:00:28]}  Rb2 {[%clk 0:02:02]} 34. Qf3 {[%clk 0:00:23]}  Rxf2 {[%clk 0:01:59]} 35. Rxf2 {[%clk 0:00:23]}  Qa1+ {[%clk 0:01:58]} 36. Rf1 {[%clk 0:00:23]}  Qxe5 {[%clk 0:01:59]} 37. g3 {[%clk 0:00:15]}  Qe4 {[%clk 0:01:59]} 38. Kg2 {[%clk 0:00:15]}  Re6 {[%clk 0:01:48]} 39. Rc1 {[%clk 0:00:14]}  Kf6 {[%clk 0:01:44]} 40. Kf2 {[%clk 0:00:13]}  Qd4+ {[%clk 0:01:40]} 41. Kf1 {[%clk 0:00:13]}  Qd2 {[%clk 0:01:37]} 42. Qc3+ {[%clk 0:00:13]}  Qxc3 {[%clk 0:01:36]} 43. Rxc3 {[%clk 0:00:13]}  Ke5 {[%clk 0:01:35]} 44. Ke2 {[%clk 0:00:13]}  Kd4+ {[%clk 0:01:35]} 45. Kd2 {[%clk 0:00:14]}  c5 {[%clk 0:01:36]} 46. Ra3 {[%clk 0:00:13]}  c4 {[%clk 0:01:35]} 47. Ra4 {[%clk 0:00:13]}  Rb6 {[%clk 0:01:36]} 48. Kc2 {[%clk 0:00:12]}  Rh6 {[%clk 0:01:36]} 49. h4 {[%clk 0:00:12]}  Rg6 {[%clk 0:01:37]} 50. Ra3 {[%clk 0:00:12]}  f4 {[%clk 0:01:37]} 51. gxf4 {[%clk 0:00:11]}  Rg2+ {[%clk 0:01:38]} 52. Kd1 {[%clk 0:00:11]}  c3 {[%clk 0:01:38]} 53. Ke1 {[%clk 0:00:09]}  c2 {[%clk 0:01:37]} 54. Ra4+ {[%clk 0:00:08]}  Ke3 {[%clk 0:01:36]} 55. Ra3+ {[%clk 0:00:08]}  Kxf4 {[%clk 0:01:36]} 56. Rc3 {[%clk 0:00:09]}  d4 {[%clk 0:01:36]} 57. Rc4 {[%clk 0:00:08]}  Ke3 {[%clk 0:01:37]} 58. Kf1 {[%clk 0:00:00]}  Rd2 {[%clk 0:01:37]} 0-1


[Site "https://www.chess.com"]

[Event "Titled Tuesday Blitz May 16 Early 2023"]
[White "Levitskiy, Andrey"]
[Black "UNSTOPPABLE_LEGEND"]
[WhiteFideId "14132885"]
[WhiteElo "2347"]
[BlackElo "2467"]
[Result "1-0"]
[Round "03"]
[TimeControl "180+2"]
[Date "2023.05.16"]
[WhiteClock "0:00:04"]
[BlackClock "0:00:05"]

1. e4 {[%clk 0:02:41]}  e6 {[%clk 0:02:57]} 2. d4 {[%clk 0:02:40]}  d5 {[%clk 0:02:55]} 3. Bd3 {[%clk 0:02:41]}  dxe4 {[%clk 0:02:55]} 4. Bxe4 {[%clk 0:02:42]}  Nf6 {[%clk 0:02:54]} 5. Bf3 {[%clk 0:02:42]}  c5 {[%clk 0:02:54]} 6. Ne2 {[%clk 0:02:43]}  Nc6 {[%clk 0:02:49]} 7. Be3 {[%clk 0:02:43]}  cxd4 {[%clk 0:02:49]} 8. Nxd4 {[%clk 0:02:44]}  Ne5 {[%clk 0:02:50]} 9. Nc3 {[%clk 0:02:44]}  a6 {[%clk 0:02:49]} 10. Qe2 {[%clk 0:02:43]}  Nxf3+ {[%clk 0:02:49]} 11. Qxf3 {[%clk 0:02:43]}  e5 {[%clk 0:02:49]} 12. O-O-O {[%clk 0:02:22]}  Bg4 {[%clk 0:02:07]} 13. Qxb7 {[%clk 0:02:20]}  Bxd1 {[%clk 0:01:59]} 14. Rxd1 {[%clk 0:01:58]}  exd4 {[%clk 0:01:46]} 15. Bxd4 {[%clk 0:01:58]}  Nd7 {[%clk 0:00:08]} 16. Re1+ {[%clk 0:00:23]}  Be7 {[%clk 0:00:08]} 17. Nd5 {[%clk 0:00:24]}  O-O {[%clk 0:00:07]} 18. Nxe7+ {[%clk 0:00:22]}  Kh8 {[%clk 0:00:07]} 19. Nc6 {[%clk 0:00:04]}  Qc8 {[%clk 0:00:07]} 20. Qxc8 {[%clk 0:00:04]}  Raxc8 {[%clk 0:00:08]} 21. Ne5 {[%clk 0:00:04]}  Rfe8 {[%clk 0:00:07]} 22. Nxf7+ {[%clk 0:00:02]}  Kg8 {[%clk 0:00:07]} 23. Rxe8+ {[%clk 0:00:03]}  Rxe8 {[%clk 0:00:07]} 24. Nd6 {[%clk 0:00:03]}  Re6 {[%clk 0:00:06]} 25. Nf5 {[%clk 0:00:02]}  g6 {[%clk 0:00:06]} 26. Ne3 {[%clk 0:00:02]}  Kf7 {[%clk 0:00:05]} 27. Kd2 {[%clk 0:00:02]}  Re4 {[%clk 0:00:05]} 28. Kd3 {[%clk 0:00:02]}  Re6 {[%clk 0:00:06]} 29. c4 {[%clk 0:00:02]}  Rc6 {[%clk 0:00:06]} 30. b3 {[%clk 0:00:02]}  Ke6 {[%clk 0:00:07]} 31. Nd5 {[%clk 0:00:03]}  Ne5+ {[%clk 0:00:07]} 32. Bxe5 {[%clk 0:00:03]}  Kxe5 {[%clk 0:00:07]} 33. f4+ {[%clk 0:00:04]}  Kf5 {[%clk 0:00:05]} 34. Ne7+ {[%clk 0:00:04]} 1-0


[Site "https://www.chess.com"]

[Event "Titled Tuesday Blitz May 16 Early 2023"]
[White "Vlassov, Nikolai"]
[Black "Rom, Jasper"]
[WhiteFideId "4103360"]
[BlackFideId "2023733"]
[WhiteElo "2324"]
[BlackElo "2233"]
[Result "1-0"]
[Round "03"]
[TimeControl "180+2"]
[Date "2023.05.16"]
[WhiteClock "0:00:01"]
[BlackClock "0:00:00"]

1. e4 {[%clk 0:03:00]}  e6 {[%clk 0:02:59]} 2. d4 {[%clk 0:03:00]}  d5 {[%clk 0:02:59]} 3. Nc3 {[%clk 0:02:58]}  Nf6 {[%clk 0:02:59]} 4. e5 {[%clk 0:02:58]}  Nfd7 {[%clk 0:02:58]} 5. f4 {[%clk 0:02:58]}  c5 {[%clk 0:02:58]} 6. Nf3 {[%clk 0:02:58]}  Nc6 {[%clk 0:02:59]} 7. Be3 {[%clk 0:02:56]}  Be7 {[%clk 0:02:59]} 8. Qd2 {[%clk 0:02:53]}  O-O {[%clk 0:02:59]} 9. h4 {[%clk 0:02:46]}  cxd4 {[%clk 0:02:42]} 10. Nxd4 {[%clk 0:02:45]}  Bxh4+ {[%clk 0:02:40]} 11. Bf2 {[%clk 0:02:29]}  Bxf2+ {[%clk 0:02:30]} 12. Qxf2 {[%clk 0:02:28]}  Nxd4 {[%clk 0:02:30]} 13. Qxd4 {[%clk 0:02:26]}  Qb6 {[%clk 0:02:30]} 14. Qd3 {[%clk 0:02:24]}  h6 {[%clk 0:02:08]} 15. O-O-O {[%clk 0:02:23]}  Nc5 {[%clk 0:02:08]} 16. Qg3 {[%clk 0:02:22]}  d4 {[%clk 0:01:59]} 17. Nb5 {[%clk 0:01:55]}  Na4 {[%clk 0:00:57]} 18. Rxd4 {[%clk 0:01:47]}  a6 {[%clk 0:00:29]} 19. Rxa4 {[%clk 0:01:39]}  Bd7 {[%clk 0:00:27]} 20. Nc3 {[%clk 0:01:22]}  Bxa4 {[%clk 0:00:25]} 21. Nxa4 {[%clk 0:01:23]}  Qd4 {[%clk 0:00:23]} 22. Nc3 {[%clk 0:01:21]}  Rfd8 {[%clk 0:00:19]} 23. Bd3 {[%clk 0:01:20]}  Rac8 {[%clk 0:00:19]} 24. Rxh6 {[%clk 0:00:52]}  Qg1+ {[%clk 0:00:18]} 25. Kd2 {[%clk 0:00:51]}  b5 {[%clk 0:00:14]} 26. a3 {[%clk 0:00:47]}  Rxd3+ {[%clk 0:00:05]} 27. cxd3 {[%clk 0:00:42]}  Qa1 {[%clk 0:00:04]} 28. Nd1 {[%clk 0:00:18]}  Qc1+ {[%clk 0:00:04]} 29. Ke1 {[%clk 0:00:14]}  Rc2 {[%clk 0:00:04]} 30. Qe3 {[%clk 0:00:10]}  gxh6 {[%clk 0:00:03]} 31. Qg3+ {[%clk 0:00:08]}  Kf8 {[%clk 0:00:03]} 32. f5 {[%clk 0:00:08]}  Qd2+ {[%clk 0:00:02]} 33. Kf1 {[%clk 0:00:08]}  Qxd1+ {[%clk 0:00:02]} 34. Qe1 {[%clk 0:00:07]}  Qxd3+ {[%clk 0:00:02]} 35. Kg1 {[%clk 0:00:07]}  Qd4+ {[%clk 0:00:03]} 36. Kh1 {[%clk 0:00:04]}  Qd2 {[%clk 0:00:03]} 37. Qe4 {[%clk 0:00:02]}  Qc1+ {[%clk 0:00:03]} 38. Kh2 {[%clk 0:00:02]}  Qg5 {[%clk 0:00:03]} 39. f6 {[%clk 0:00:02]}  Qf5 {[%clk 0:00:00]} 40. Qa8+ {[%clk 0:00:01]} 1-0


[Site "https://www.chess.com"]